[Event "Kurnosov Memorial Rapid 2020"]
[Site "Chelyabinsk"]
[Date "2020.09.05"]
[Round "6.12"]
[White "Kryakvin, Dmitry"]
[Black "Paravyan, David"]
[Result "0-1"]
[ECO "D85"]
[WhiteElo "2594"]
[BlackElo "2653"]
[Annotator "RC"]
[PlyCount "88"]
[EventDate "2020.09.04"]
[EventType "swiss"]
[EventCountry "RUS"]
[SourceTitle "playchess.com"]
[Source "ChessBase"]
[SourceQuality "1"]
[TimeControl "900+10"]

1. d4 {[%emt 0:00:00]} Nf6 {[%emt 0:00:00]} 2. c4 {[%emt 0:00:00]} g6 {[%emt 0:00:00]} 3. Nc3 {[%emt 0:00:17]} d5 {[%emt 0:00:00]} 4. cxd5 {[%emt 0:00:08]} Nxd5 {[%emt 0:00:00]} 5. Bd2 {[%emt 0:00:01]} Bg7 {[%emt 0:01:02]} 6. e4 {[%emt 0:00:04]} Nb6 {[%emt 0:00:02]} 7. Be3 {[%emt 0:00:20]} O-O {[%emt 0:00:03]} 8. Be2 {[%emt 0:00:22]} Nc6 {[%emt 0:02:42]} 9. d5 {[%emt 0:00:48]} Ne5 {[%emt 0:06:37]} 10. Bd4 {[%emt 0:00:31]} c5 {[%emt 0:02:24]} 11. Bxc5 {[%emt 0:02:57]} Nec4 {[%emt 0:00:01]} 12. Qb3 {[%emt 0:03:39]} Nxb2 {[%emt 0:01:28]} 13. Rc1 {[%emt 0:00:41]} Bxc3+ {[%emt 0:00:24]} 14. Qxc3 {[%emt 0:02:55]} N2a4 {[%emt 0:00:04]} 15. Qd4 {[%emt 0:02:08]} Nxc5 {[%emt 0:00:03]} 16. Rxc5 {[%emt 0:00:02]} e5 {[%emt 0:00:04]} 17. Qb4 {[%emt 0:00:36]} f5 {[%emt 0:02:34]} 18. exf5 {[%emt 0:00:36]} Bxf5 {[%emt 0:00:03]} 19. Nf3 {[%emt 0:00:12]} Qd6 {[%emt 0:00:16]} 20. Rb5 {[%emt 0:01:39]} Qxb4+ {[%emt 0:00:17]} 21. Rxb4 {[%emt 0:00:01]} Rfd8 {[%emt 0:00:14]} 22. Rb5 {[%emt 0:00:28]} Rac8 {[%emt 0:00:08]} 23. O-O {[%emt 0:00:03]} Rc2 {[%emt 0:00:04]} 24. Re1 {[%emt 0:00:15]} Rxd5 {[%emt 0:00:18]} 25. Rxd5 {[%emt 0:00:11]} Nxd5 {[%emt 0:00:02]} 26. Nxe5 {[%emt 0:00:01]} Kg7 {[%emt 0:00:18]} 27. Bc4 {[%emt 0:00:15]} Nc3 {[%emt 0:00:07]} 28. Bb3 {[%emt 0:00:07]} Rb2 {[%emt 0:00:11]} 29. Nc4 {[%emt 0:00:08]} Rb1 {[%emt 0:00:13]} 30. Rxb1 {[%emt 0:00:02]} Bxb1 {[%emt 0:00:03]} 31. a4 {[%emt 0:00:03]} Ne2+ {[%emt 0:00:12]} 32. Kh1 {[%emt 0:00:35]} Be4 {[%emt 0:00:07]} 33. Nd6 {[%emt 0:00:09]} Bc6 {[%emt 0:00:03]} 34. a5 {[%emt 0:00:03]} Kf6 {[%emt 0:00:08]} 35. a6 {[%emt 0:00:15]} bxa6 {[%emt 0:00:11]} 36. Bc4 {[%emt 0:00:13]} Nf4 {[%emt 0:00:01]} 37. f3 {[%emt 0:00:05]} a5 {[%emt 0:00:22]} 38. Nc8 {[%emt 0:00:01]} a4 {[%emt 0:00:21]} 39. Nxa7 {[%emt 0:00:03]} Bd5 {[%emt 0:00:02]} 40. Bxd5 {[%emt 0:00:05]} Nxd5 {[%emt 0:00:01]} 41. Nb5 {[%emt 0:00:01]} Ne3 {[%emt 0:00:16]} 42. Kg1 {[%emt 0:00:17]} Nc2 {[%emt 0:00:14]} 43. Kf2 {[%emt 0:00:01]} a3 {[%emt 0:00:01]} 44. Nc3 {[%emt 0:00:01]} Nb4 {[%emt 0:00:16]} 0-1

[Event "Kurnosov Memorial Rapid 2020"]
[Site "Chelyabinsk"]
[Date "2020.09.05"]
[Round "8.2"]
[White "Rakhmanov, Aleksandr"]
[Black "Savchenko, Boris"]
[Result "1/2-1/2"]
[ECO "D90"]
[WhiteElo "2645"]
[BlackElo "2564"]
[Annotator "RC"]
[PlyCount "79"]
[EventDate "2020.09.04"]
[EventType "swiss"]
[EventCountry "RUS"]
[SourceTitle "playchess.com"]
[Source "ChessBase"]
[SourceQuality "1"]
[TimeControl "900+10"]

1. d4 {[%emt 0:00:00]} Nf6 {[%emt 0:00:00]} 2. c4 {[%emt 0:00:00]} g6 {[%emt 0:00:00]} 3. Nc3 {[%emt 0:00:00]} d5 {[%emt 0:00:00]} 4. Nf3 {[%emt 0:00:01]} Bg7 {[%emt 0:00:00]} 5. cxd5 {[%emt 0:00:02]} Nxd5 {[%emt 0:00:00]} 6. Qa4+ {[%emt 0:00:02]} Nc6 {[%emt 0:02:25]} 7. e4 {[%emt 0:00:03]} Nb6 {[%emt 0:00:42]} 8. Qc2 {[%emt 0:00:06]} Nxd4 {[%emt 0:01:41]} 9. Nxd4 {[%emt 0:00:03]} Bxd4 {[%emt 0:00:03]} 10. Bh6 {[%emt 0:00:06]} f6 {[%emt 0:03:36]} 11. Rd1 {[%emt 0:03:42]} c5 {[%emt 0:00:35]} 12. Nb5 {[%emt 0:04:11]} Be6 {[%emt 0:01:57]} 13. b3 {[%emt 0:05:36]} g5 {[%emt 0:02:27]} 14. h4 {[%emt 0:00:52]} Rg8 {[%emt 0:01:07]} 15. hxg5 {[%emt 0:00:04]} fxg5 {[%emt 0:00:07]} 16. Be2 {[%emt 0:00:44]} Qd7 {[%emt 0:00:36]} 17. Nxd4 {[%emt 0:01:21]} cxd4 {[%emt 0:00:03]} 18. Qc5 {[%emt 0:00:01]} Rc8 {[%emt 0:00:30]} 19. Qe5 {[%emt 0:01:00]} Qd6 {[%emt 0:00:10]} 20. Qxd6 {[%emt 0:00:06]} exd6 {[%emt 0:00:02]} 21. Rxd4 {[%emt 0:00:04]} Rc1+ {[%emt 0:01:35]} 22. Bd1 {[%emt 0:00:02]} Rg6 {[%emt 0:00:37]} 23. f4 {[%emt 0:00:11]} gxf4 {[%emt 0:00:08]} 24. Bxf4 {[%emt 0:00:02]} Ra1 {[%emt 0:00:10]} 25. O-O {[%emt 0:00:37]} Rxa2 {[%emt 0:00:24]} 26. Bh5 {[%emt 0:00:01]} Raxg2+ {[%emt 0:00:01]} 27. Kh1 {[%emt 0:00:01]} d5 {[%emt 0:00:22]} 28. Re1 {[%emt 0:00:23]} Kd7 {[%emt 0:00:07]} 29. Bxg6 {[%emt 0:00:03]} Rxg6 {[%emt 0:00:02]} 30. Rc1 {[%emt 0:00:06]} Rg4 {[%emt 0:00:05]} 31. Be5 {[%emt 0:00:22]} Rxe4 {[%emt 0:00:15]} 32. Rc7+ {[%emt 0:00:06]} Ke8 {[%emt 0:00:20]} 33. Rxe4 {[%emt 0:00:03]} dxe4 {[%emt 0:00:01]} 34. Rxb7 {[%emt 0:00:25]} e3 {[%emt 0:00:15]} 35. Kg1 {[%emt 0:00:04]} Bxb3 {[%emt 0:00:10]} 36. Rxa7 {[%emt 0:00:10]} Bc2 {[%emt 0:00:11]} 37. Bd4 {[%emt 0:00:04]} Nd5 {[%emt 0:00:05]} 38. Ra1 {[%emt 0:00:18]} Kf7 {[%emt 0:00:08]} 39. Re1 {[%emt 0:00:05]} Bf5 {[%emt 0:00:04]} 40. Rxe3 {[%emt 0:00:02]} 1/2-1/2

[Event "Kurnosov Memorial Rapid 2020"]
[Site "Chelyabinsk"]
[Date "2020.09.06"]
[Round "11.2"]
[White "Faizrakhmanov, Ramil"]
[Black "Rakhmanov, Aleksandr"]
[Result "0-1"]
[ECO "A53"]
[WhiteElo "2451"]
[BlackElo "2645"]
[Annotator "RC"]
[PlyCount "104"]
[EventDate "2020.09.04"]
[EventType "swiss"]
[EventCountry "RUS"]
[SourceTitle "playchess.com"]
[Source "ChessBase"]
[SourceQuality "1"]
[TimeControl "900+10"]

1. d4 {[%emt 0:00:00]} Nf6 {[%emt 0:00:00]} 2. c4 {[%emt 0:00:00]} d6 {[%emt 0:00:00]} 3. Nf3 {[%emt 0:00:00]} g6 {[%emt 0:00:00]} 4. Nc3 {[%emt 0:00:03]} Bf5 {[%emt 0:00:00]} 5. e3 {[%emt 0:00:03]} Bg7 {[%emt 0:00:07]} 6. Bd3 {[%emt 0:00:03]} Bxd3 {[%emt 0:00:05]} 7. Qxd3 {[%emt 0:00:01]} O-O {[%emt 0:00:03]} 8. O-O {[%emt 0:00:03]} Nbd7 {[%emt 0:00:02]} 9. b3 {[%emt 0:00:54]} e5 {[%emt 0:00:05]} 10. Bb2 {[%emt 0:00:07]} Re8 {[%emt 0:00:26]} 11. dxe5 {[%emt 0:00:59]} dxe5 {[%emt 0:00:13]} 12. Rfd1 {[%emt 0:01:00]} c6 {[%emt 0:02:14]} 13. Ne4 {[%emt 0:01:22]} Nxe4 {[%emt 0:02:17]} 14. Qxe4 {[%emt 0:00:05]} Qe7 {[%emt 0:01:08]} 15. Rd2 {[%emt 0:00:31]} Nc5 {[%emt 0:00:29]} 16. Qc2 {[%emt 0:00:10]} e4 {[%emt 0:00:51]} 17. Ne1 {[%emt 0:00:35]} Bxb2 {[%emt 0:00:34]} 18. Qxb2 {[%emt 0:00:02]} a5 {[%emt 0:00:26]} 19. Rad1 {[%emt 0:01:03]} Qe5 {[%emt 0:00:10]} 20. Qxe5 {[%emt 0:01:56]} Rxe5 {[%emt 0:00:02]} 21. h4 {[%emt 0:00:29]} Kf8 {[%emt 0:00:16]} 22. Kf1 {[%emt 0:00:12]} Ke8 {[%emt 0:00:26]} 23. Ke2 {[%emt 0:00:21]} h6 {[%emt 0:00:17]} 24. g3 {[%emt 0:00:45]} Rc8 {[%emt 0:01:26]} 25. Ng2 {[%emt 0:01:19]} g5 {[%emt 0:02:41]} 26. Rd6 {[%emt 0:01:08]} Re6 {[%emt 0:00:36]} 27. R6d4 {[%emt 0:00:47]} Re5 {[%emt 0:00:32]} 28. Rd6 {[%emt 0:00:08]} Ne6 {[%emt 0:00:02]} 29. R6d2 {[%emt 0:02:41]} Rd8 {[%emt 0:00:39]} 30. Rxd8+ {[%emt 0:00:20]} Nxd8 {[%emt 0:00:02]} 31. hxg5 {[%emt 0:00:19]} hxg5 {[%emt 0:00:02]} 32. g4 {[%emt 0:00:26]} Ne6 {[%emt 0:00:24]} 33. Ne1 {[%emt 0:00:29]} Rc5 {[%emt 0:00:36]} 34. Rd2 {[%emt 0:01:07]} f5 {[%emt 0:01:38]} 35. gxf5 {[%emt 0:00:12]} Rxf5 {[%emt 0:00:02]} 36. Nc2 {[%emt 0:00:32]} Nc5 {[%emt 0:00:05]} 37. Nd4 {[%emt 0:00:05]} Rf6 {[%emt 0:00:12]} 38. Rd1 {[%emt 0:00:01]} g4 {[%emt 0:00:33]} 39. Nc2 {[%emt 0:00:49]} Nd3 {[%emt 0:00:14]} 40. Rf1 {[%emt 0:00:02]} Rh6 {[%emt 0:00:30]} 41. Nd4 {[%emt 0:00:20]} Rf6 {[%emt 0:00:20]} 42. Nc2 {[%emt 0:00:02]} Kf7 {[%emt 0:00:15]} 43. a3 {[%emt 0:00:13]} c5 {[%emt 0:00:22]} 44. Ne1 {[%emt 0:00:17]} Nc1+ {[%emt 0:00:19]} 45. Kd2 {[%emt 0:00:05]} Nxb3+ {[%emt 0:00:02]} 46. Kc2 {[%emt 0:00:14]} a4 {[%emt 0:00:11]} 47. Ng2 {[%emt 0:00:03]} Na5 {[%emt 0:00:42]} 48. Kc3 {[%emt 0:00:06]} Rb6 {[%emt 0:00:01]} 49. Nf4 {[%emt 0:00:26]} Rb3+ {[%emt 0:00:01]} 50. Kc2 {[%emt 0:00:01]} Nxc4 {[%emt 0:00:02]} 51. Nd5 {[%emt 0:00:13]} Nxa3+ {[%emt 0:00:05]} 52. Kd2 {[%emt 0:00:02]} Rb2+ {[%emt 0:00:02]} 0-1